fUSD/lending_fUSD_20250127
["ID","MTS","AMOUNT","RATE_DAILY","PERIOD"]
[350567569,1737965479977,-509.69993749,0.00011918,2]
[350567570,1737965479987,-500.0,0.00011918,2]
[350567571,1737965479996,-500.0,0.00011918,2]
[350567572,1737965480006,-500.0,0.00011918,2]
[350567573,1737965480016,-500.0,0.00011918,2]
[350567574,1737965480026,-500.0,0.00011918,2]
[350567575,1737965480035,-500.0,0.00011918,2]
[350567576,1737965480045,-500.0,0.00011918,2]
[350567577,1737965480054,-500.0,0.00011918,2]
[350567578,1737965480064,-500.0,0.00011918,2]
[350567579,1737965480074,-500.0,0.00011918,2]
[350567580,1737965480092,-500.0,0.00011918,2]
[350567581,1737965480101,-500.0,0.00011918,2]
[350567582,1737965480110,-500.0,0.00011918,2]
[350567583,1737965480120,-500.0,0.00011918,2]
[350567584,1737965480129,-500.0,0.00011918,2]
[350567585,1737965480138,-500.0,0.00011918,2]
[350567586,1737965480147,-533.35581083,0.00011918,2]
[350567587,1737965480157,-500.0,0.00011918,2]
[350567588,1737965480166,-500.0,0.00011918,2]
[350567589,1737965480176,-500.0,0.00011918,2]
[350567590,1737965480186,-500.0,0.00011918,2]
[350567591,1737965480195,-159.35191097,0.00011918,2]
[350567592,1737965480210,-340.64808903,0.00011918,2]
[350567593,1737965480219,-500.0,0.00011918,2]
[350567594,1737965480228,-500.0,0.00011918,2]
[350567595,1737965480237,-500.0,0.00011918,2]
[350567596,1737965480246,-500.0,0.00011918,2]
[350567597,1737965480256,-500.0,0.00011918,2]
[350567598,1737965480265,-500.0,0.00011918,2]
[350567599,1737965480275,-500.0,0.00011918,2]
[350567600,1737965480285,-500.0,0.00011918,2]
[350567601,1737965480294,-500.0,0.00011918,2]
[350567602,1737965480304,-500.0,0.00011918,2]
[350567603,1737965480314,-500.0,0.00011918,2]
[350567604,1737965480324,-500.0,0.00011918,2]
[350567605,1737965480340,-500.0,0.00011918,2]
[350567606,1737965480350,-500.0,0.00011918,2]
[350567607,1737965480360,-500.0,0.00011918,2]
[350567608,1737965480370,-500.0,0.00011918,2]
[350567609,1737965480379,-500.0,0.00011918,2]
[350567610,1737965480388,-500.0,0.00011918,2]
[350567611,1737965480398,-458.49074603,0.00011918,2]
[350567612,1737965480407,-500.0,0.00011918,2]
[350567613,1737965480417,-500.0,0.00011918,2]
[350567614,1737965480427,-500.0,0.00011918,2]
[350567615,1737965480436,-500.0,0.00011918,2]
[350567616,1737965480446,-500.0,0.00011918,2]
[350567617,1737965480457,-500.0,0.00011918,2]
[350567618,1737965480467,-500.0,0.00011918,2]
[350567619,1737965480477,-500.0,0.00011918,2]
[350567620,1737965480487,-500.0,0.00011918,2]
[350567621,1737965480497,-500.0,0.00011918,2]
[350567622,1737965480506,-500.0,0.00011918,2]
[350567623,1737965480516,-500.0,0.00011918,2]
[350567624,1737965480525,-500.0,0.00011918,2]
[350567625,1737965480535,-500.0,0.00011918,2]
[350567626,1737965480545,-500.0,0.00011918,2]
[350567627,1737965480554,-500.0,0.00011918,2]
[350567628,1737965480564,-500.0,0.00011918,2]
[350567629,1737965480573,-500.0,0.00011918,2]
[350567630,1737965480587,-500.0,0.00011918,2]
[350567631,1737965480596,-500.0,0.00011918,2]
[350567632,1737965480606,-500.0,0.00011918,2]
[350567633,1737965480616,-500.0,0.00011918,2]
[350567634,1737965480625,-500.0,0.00011918,2]
[350567635,1737965480634,-500.0,0.00011918,2]
[350567636,1737965480644,-500.0,0.00011918,2]
[350567637,1737965480654,-566.54670418,0.00011918,2]
[350567638,1737965480664,-500.0,0.00011918,2]
[350567639,1737965480673,-500.0,0.00011918,2]
[350567640,1737965480683,-500.0,0.00011918,2]
[350567641,1737965480693,-500.0,0.00011918,2]
[350567642,1737965480703,-500.0,0.00011918,2]
[350567643,1737965480713,-500.0,0.00011918,2]
[350567644,1737965480724,-500.0,0.00011918,2]
[350567645,1737965480733,-500.0,0.00011918,2]
[350567646,1737965480742,-500.0,0.00011918,2]
[350567647,1737965480751,-537.03934018,0.00011918,2]
[350567648,1737965480761,-500.0,0.00011918,2]
[350567649,1737965480771,-500.0,0.00011918,2]
[350567650,1737965480780,-500.0,0.00011918,2]
[350567651,1737965480790,-500.0,0.00011918,2]
[350567652,1737965480801,-537.93998662,0.00011918,2]
[350567653,1737965480810,-590.85004856,0.00011918,2]
[350567654,1737965480820,-500.0,0.00011918,2]
[350567655,1737965480832,-500.0,0.00011918,2]
[350567656,1737965480841,-500.0,0.00011918,2]
[350567657,1737965480851,-500.0,0.00011918,2]
[350567658,1737965480860,-500.0,0.00011918,2]
[350567659,1737965480869,-500.0,0.00011918,2]
[350567660,1737965480878,-500.0,0.00011918,2]
[350567661,1737965480887,-312.97774806,0.00011918,2]
[350567662,1737965480897,-605.96,0.00011918,2]
[350567663,1737965480907,-500.0,0.00011918,2]
[350567664,1737965480917,-500.0,0.00011918,2]
[350567665,1737965480927,-500.0,0.00011918,2]
[350567666,1737965480937,-500.0,0.00011918,2]
[350567667,1737965480946,-500.0,0.00011918,2]
[350567668,1737965480956,-500.0,0.00011918,2]
[350567669,1737965480966,-500.0,0.00011918,2]
[350567670,1737965480976,-500.0,0.00011918,2]
[350567671,1737965480985,-500.0,0.00011918,2]
[350567672,1737965480995,-500.0,0.00011918,2]
[350567673,1737965481005,-500.0,0.00011918,2]
[350567674,1737965481014,-500.0,0.00011918,2]
[350567675,1737965481023,-162.84336777,0.00011918,2]
[350567676,1737965481033,-500.0,0.00011918,2]
[350567677,1737965481042,-444.83458284,0.00011918,2]
[350567678,1737965481051,-500.0,0.00011918,2]
[350567679,1737965481061,-500.0,0.00011918,2]
[350567680,1737965481070,-500.0,0.00011918,2]
[350567681,1737965481080,-500.0,0.00011918,2]
[350567682,1737965481090,-500.0,0.00011918,2]
[350567683,1737965481099,-500.0,0.00011918,2]
[350567684,1737965481108,-500.0,0.00011918,2]
[350567685,1737965481117,-500.0,0.00011918,2]
[350567686,1737965481127,-500.0,0.00011918,2]
[350567687,1737965481136,-500.0,0.00011918,2]
[350567688,1737965481146,-500.0,0.00011918,2]
[350567689,1737965481155,-500.0,0.00011918,2]
[350567690,1737965481165,-500.0,0.00011918,2]
[350567691,1737965481174,-482.36938674,0.00011918,2]
[350567692,1737965481224,-17.63061326,0.00011918,2]
[350567693,1737965481233,-500.0,0.00011918,2]
[350567694,1737965481243,-500.0,0.00011918,2]
[350567695,1737965481253,-500.0,0.00011918,2]
[350567696,1737965481263,-500.0,0.00011918,2]
[350567697,1737965481272,-30.50118296,0.00011918,2]
[350567698,1737965481291,-469.49881704,0.00011918,2]
[350567699,1737965481300,-500.0,0.00011918,2]
[350567700,1737965481310,-500.0,0.00011918,2]
[350567701,1737965481320,-500.0,0.00011918,2]
[350567702,1737965481330,-500.0,0.00011918,2]
[350567703,1737965481340,-500.0,0.00011918,2]
[350567704,1737965481349,-9.19861724,0.00011918,2]
[350567705,1737965481877,-236.64511289,0.00011778,2]
[350567706,1737965481888,-490.80138276,0.00011918,2]
[350567707,1737965481898,-500.0,0.00011918,2]
[350567708,1737965481908,-143.41429538,0.00011918,2]
[350567709,1737965481920,-356.58570462,0.00011918,2]
[350567710,1737965481930,-500.0,0.00011918,2]
[350567711,1737965481939,-317.06252306,0.00011918,2]
[350567712,1737965481951,-182.93747694,0.00011918,2]
[350567713,1737965481960,-500.0,0.00011918,2]
[350567714,1737965481970,-500.0,0.00011918,2]
[350567715,1737965481980,-186.17034314,0.00011918,2]
[350567716,1737965482000,-276.10057,0.00011918,2]
[350567717,1737965482043,-500.0,0.00011878,2]
[350567718,1737965482053,-37.72908686,0.00011918,2]
[350567719,1737965482063,-176.86,0.00011918,2]
[350567720,1737965482072,-500.0,0.00011918,2]
[350567721,1737965482084,-500.0,0.00011918,2]
[350567722,1737965482094,-500.0,0.00011918,2]
[350567723,1737965482103,-500.0,0.00011918,2]
[350567724,1737965482112,-500.0,0.00011918,2]
[350567725,1737965482121,-500.0,0.00011918,2]
[350567726,1737965482130,-500.0,0.00011918,2]
[350567727,1737965482139,-500.0,0.00011918,2]
[350567728,1737965482148,-500.0,0.00011918,2]
[350567729,1737965482157,-309.91716349,0.00011918,2]
[350567730,1737965482166,-500.0,0.00011918,2]
[350567731,1737965482175,-500.0,0.00011918,2]
[350567732,1737965482184,-500.0,0.00011918,2]
[350567733,1737965482194,-500.0,0.00011918,2]
[350567734,1737965482203,-500.0,0.00011918,2]
[350567735,1737965482212,-245.32390322,0.00011918,2]
[350567736,1737965482222,-500.0,0.00011918,2]
[350567737,1737965482231,-500.0,0.00011918,2]
[350567738,1737965482240,-500.0,0.00011918,2]
[350567739,1737965482250,-500.0,0.00011918,2]
[350567740,1737965482259,-500.0,0.00011918,2]
[350567741,1737965482268,-500.0,0.00011918,2]
[350567742,1737965482277,-500.0,0.00011918,2]
[350567743,1737965482285,-500.0,0.00011918,2]
[350567744,1737965482294,-500.0,0.00011918,2]
[350567745,1737965482303,-214.63576828,0.00011918,2]
[350567746,1737965482313,-500.0,0.00011918,2]
[350567747,1737965482323,-606.92158185,0.00011918,2]
[350567748,1737965482335,-500.0,0.00011918,2]
[350567749,1737965482344,-500.0,0.00011918,2]
[350567750,1737965482354,-500.0,0.00011918,2]
[350567751,1737965482363,-500.0,0.00011918,2]
[350567752,1737965482373,-500.0,0.00011918,2]
[350567753,1737965482383,-500.0,0.00011918,2]
[350567754,1737965482392,-500.0,0.00011918,2]
[350567755,1737965482401,-500.0,0.00011918,2]
[350567756,1737965482411,-500.0,0.00011918,2]
[350567757,1737965482420,-500.0,0.00011918,2]
[350567758,1737965482429,-500.0,0.00011918,2]
[350567759,1737965482438,-500.0,0.00011918,2]
[350567760,1737965482447,-500.0,0.00011918,2]
[350567761,1737965482457,-500.0,0.00011918,2]
[350567762,1737965482467,-500.0,0.00011918,2]
[350567763,1737965482476,-337.07176363,0.00011918,2]
[350567764,1737965482485,-500.0,0.00011918,2]
[350567765,1737965482494,-500.0,0.00011918,2]
[350567766,1737965482503,-500.0,0.00011918,2]
[350567767,1737965482513,-500.0,0.00011918,2]
[350567768,1737965482522,-500.0,0.00011918,2]
[350567769,1737965482532,-500.0,0.00011918,2]
[350567770,1737965482542,-500.0,0.00011918,2]
[350567771,1737965482552,-594.9725768,0.00011918,2]
[350567772,1737965482561,-500.0,0.00011918,2]
[350567773,1737965482572,-217.91023213,0.00011918,2]
[350567774,1737965482586,-500.0,0.00011918,2]
[350567775,1737965482595,-500.0,0.00011918,2]
[350567776,1737965482604,-500.0,0.00011918,2]
[350567777,1737965482613,-500.0,0.00011918,2]
[350567778,1737965482623,-500.0,0.00011918,2]
[350567779,1737965482632,-500.0,0.00011918,2]
[350567780,1737965482642,-500.0,0.00011918,2]
[350567781,1737965482652,-500.0,0.00011918,2]
[350567782,1737965482662,-500.0,0.00011918,2]
[350567783,1737965482671,-523.89053883,0.00011918,2]
[350567784,1737965482680,-500.0,0.00011918,2]
[350567785,1737965482690,-500.0,0.00011918,2]
[350567786,1737965482700,-151.74967696,0.00011918,2]
[350567787,1737965482710,-500.0,0.00011918,2]
[350567788,1737965482719,-500.0,0.00011918,2]
[350567789,1737965482733,-500.0,0.00011918,2]
[350567790,1737965482743,-500.0,0.00011918,2]
[350567791,1737965482752,-465.527088,0.00011918,2]
[350567792,1737965482761,-1278.17,0.00011918,2]
[350567793,1737965482773,-500.0,0.00011918,2]
[350567794,1737965482782,-500.0,0.00011918,2]
[350567795,1737965482792,-1152.99,0.00011918,2]
[350567796,1737965482802,-1152.99,0.00011918,2]
[350567797,1737965482811,-1152.99,0.00011918,2]
[350567798,1737965482821,-1152.99,0.00011918,2]
[350567799,1737965482833,-1152.99,0.00011918,2]
[350567800,1737965482843,-1153.15436981,0.00011918,2]
[350567801,1737965482853,-296.232655,0.00011918,2]
[350567802,1737965482862,-296.232655,0.00011918,2]
[350567803,1737965482871,-296.232655,0.00011918,2]
[350567804,1737965482880,-296.232655,0.00011918,2]
[350567805,1737965482890,-296.232655,0.00011918,2]
[350567806,1737965482899,-296.232655,0.00011918,2]
[350567807,1737965482908,-389.91,0.00011918,2]
[350567808,1737965482918,-500.0,0.00011918,2]
[350567809,1737965482927,-833.0,0.00011918,2]
[350567810,1737965482936,-833.0,0.00011918,2]
[350567811,1737965482946,-537.9,0.00011918,2]
[350567812,1737965483110,-533.28,0.00011918,2]
[350567813,1737965483120,-5663.95,0.00011918,2]
[350567814,1737965483130,-5663.95,0.00011918,2]
[350567815,1737965483139,-5663.95,0.00011918,2]
[350567816,1737965483147,-5663.95,0.00011918,2]
[350567817,1737965483156,-5663.95,0.00011918,2]
[350567818,1737965483165,-5664.08237184,0.00011918,2]
[350567819,1737965483174,-1051.37,0.00011918,2]
[350567820,1737965483183,-1608.24,0.00011918,2]
[350567821,1737965483192,-1608.24,0.00011918,2]
[350567822,1737965483201,-1608.24,0.00011918,2]
[350567823,1737965483210,-1608.24,0.00011918,2]
[350567824,1737965483219,-1608.24,0.00011918,2]
[350567825,1737965483227,-1608.29,0.00011918,2]
[350567826,1737965483236,-827.97,0.00011918,2]
[350567827,1737965483246,-827.97,0.00011918,2]
[350567828,1737965483255,-500.0,0.00011918,2]
[350567829,1737965483264,-511.72144077,0.00011918,2]
[350567830,1737965483274,-1193.97,0.00011918,2]
[350567831,1737965483283,-841.29,0.00011918,2]
[350567832,1737965483291,-1330.82,0.00011918,2]
[350567833,1737965483300,-1330.82,0.00011918,2]
[350567834,1737965483309,-623.54,0.00011918,2]
[350567835,1737965483320,-928.32,0.00011918,2]
[350567836,1737965483332,-928.32,0.00011918,2]
[350567837,1737965483341,-928.32,0.00011918,2]
[350567838,1737965483351,-928.32,0.00011918,2]
[350567839,1737965483360,-928.32,0.00011918,2]
[350567840,1737965483369,-928.44091576,0.00011918,2]
[350567841,1737965483379,-851.8,0.00011918,2]
[350567842,1737965483388,-500.0,0.00011918,2]
[350567843,1737965483398,-345.8,0.00011918,2]
[350567844,1737965483407,-820.47,0.00011918,2]
[350567845,1737965483416,-820.47,0.00011918,2]
[350567846,1737965483425,-820.47,0.00011918,2]
[350567847,1737965483434,-820.47,0.00011918,2]
[350567848,1737965483443,-820.47,0.00011918,2]
[350567849,1737965483452,-1216.92,0.00011918,2]
[350567850,1737965483462,-820.59,0.00011918,2]
[350567851,1737965483472,-1216.92,0.00011918,2]
[350567852,1737965483481,-1216.92,0.00011918,2]
[350567853,1737965483490,-1216.92,0.00011918,2]
[350567854,1737965483499,-1216.92650022,0.00011918,2]
[350567855,1737965483508,-500.0,0.00011918,2]
[350567856,1737965483517,-500.0,0.00011918,2]
[350567857,1737965483526,-500.0,0.00011918,2]
[350567858,1737965483536,-500.0,0.00011918,2]
[350567859,1737965483545,-652.15,0.00011918,2]
[350567860,1737965483555,-614.85495505,0.00011918,2]
[350567861,1737965483564,-652.15,0.00011918,2]
[350567862,1737965483574,-652.15,0.00011918,2]
[350567863,1737965483586,-652.15,0.00011918,2]
[350567864,1737965483595,-500.0,0.00011918,2]
[350567865,1737965483604,-652.15,0.00011918,2]
[350567866,1737965483614,-500.0,0.00011918,2]
[350567867,1737965483624,-652.15,0.00011918,2]
[350567868,1737965483633,-557.06337945,0.00011918,2]
[350567869,1737965483642,-633.47,0.00011918,2]
[350567870,1737965483652,-500.0,0.00011918,2]
[350567871,1737965483660,-1644.6,0.00011918,2]
[350567872,1737965483670,-1644.6,0.00011918,2]
[350567873,1737965483679,-1644.6,0.00011918,2]
[350567874,1737965483689,-1644.6,0.00011918,2]
[350567875,1737965483699,-1644.6,0.00011918,2]
[350567876,1737965483710,-1644.67589005,0.00011918,2]
[350567877,1737965483723,-1170.82,0.00011918,2]
[350567878,1737965483733,-1170.82,0.00011918,2]
[350567879,1737965483742,-1170.82,0.00011918,2]
[350567880,1737965483752,-1170.82,0.00011918,2]
[350567881,1737965483762,-1170.82,0.00011918,2]
[350567882,1737965483771,-1170.90544087,0.00011918,2]
[350567883,1737965483781,-1139.24,0.00011918,2]
[350567884,1737965483791,-1139.24,0.00011918,2]
[350567885,1737965483803,-1139.24,0.00011918,2]
[350567886,1737965483813,-1139.24,0.00011918,2]
[350567887,1737965483823,-1139.31,0.00011918,2]
[350567888,1737965483833,-1019.32,0.00011918,2]
[350567889,1737965483843,-500.0,0.00011918,2]
[350567890,1737965483853,-442.7285266,0.00011918,2]
[350567891,1737965483863,-500.0,0.00011918,2]
[350567892,1737965483872,-550.36,0.00011918,2]
[350567893,1737965483882,-1127.57,0.00011918,2]
[350567894,1737965483893,-1127.57,0.00011918,2]
[350567895,1737965483902,-1127.57,0.00011918,2]
[350567896,1737965483911,-1127.57,0.00011918,2]
[350567897,1737965483920,-1127.57,0.00011918,2]
[350567898,1737965483929,-564.37,0.00011918,2]
[350567899,1737965483939,-770.46,0.00011918,2]
[350567900,1737965483949,-1347.75,0.00011918,2]
[350567901,1737965483959,-1347.75,0.00011918,2]
[350567902,1737965483969,-1347.75,0.00011918,2]
[350567903,1737965483978,-1347.75,0.00011918,2]
[350567904,1737965483987,-1347.87,0.00011918,2]
[350567905,1737965483996,-500.0,0.00011918,2]
[350567906,1737965484005,-1053.45,0.00011918,2]
[350567907,1737965484014,-1053.45,0.00011918,2]
[350567908,1737965484023,-1053.45,0.00011918,2]
[350567909,1737965484033,-1053.45,0.00011918,2]
[350567910,1737965484042,-1053.61,0.00011918,2]
[350567911,1737965484051,-536.42,0.00011918,2]
[350567912,1737965484060,-564.84,0.00011918,2]
[350567913,1737965484070,-564.84,0.00011918,2]
[350567914,1737965484081,-564.84,0.00011918,2]
[350567915,1737965484090,-564.84,0.00011918,2]
[350567916,1737965484099,-564.84,0.00011918,2]
[350567917,1737965484108,-564.9511455,0.00011918,2]
[350567918,1737965484117,-780.59,0.00011918,2]
[350567919,1737965484127,-780.59,0.00011918,2]
[350567920,1737965484136,-780.59,0.00011918,2]
[350567921,1737965484146,-780.59,0.00011918,2]
[350567922,1737965484156,-780.78129613,0.00011918,2]
[350567923,1737965484165,-698.45,0.00011918,2]
[350567924,1737965484175,-698.45,0.00011918,2]
[350567925,1737965484185,-698.45,0.00011918,2]
[350567926,1737965484195,-698.45,0.00011918,2]
[350567927,1737965484205,-698.45,0.00011918,2]
[350567928,1737965484215,-698.58250047,0.00011918,2]
[350567929,1737965484225,-2165.73,0.00011918,2]
[350567930,1737965484234,-2165.73,0.00011918,2]
[350567931,1737965484244,-2165.73,0.00011918,2]
[350567932,1737965484254,-2165.73,0.00011918,2]
[350567933,1737965484263,-2165.77449487,0.00011918,2]
[350567934,1737965484272,-500.0,0.00011918,2]
[350567935,1737965484282,-730.65,0.00011918,2]
[350567936,1737965484292,-665.8,0.00011918,2]
[350567937,1737965484301,-665.8,0.00011918,2]
[350567938,1737965484311,-665.8,0.00011918,2]
[350567939,1737965484320,-665.8,0.00011918,2]
[350567940,1737965484331,-665.81,0.00011918,2]
[350567941,1737965484340,-770.01,0.00011918,2]
[350567942,1737965484349,-770.01,0.00011918,2]
[350567943,1737965484359,-770.01,0.00011918,2]
[350567944,1737965484370,-770.01,0.00011918,2]
[350567945,1737965484380,-770.01,0.00011918,2]
[350567946,1737965484390,-770.04819356,0.00011918,2]
[350567947,1737965484400,-942.7,0.00011918,2]
[350567948,1737965484410,-520.64,0.00011918,2]
[350567949,1737965484420,-520.64,0.00011918,2]
[350567950,1737965484429,-520.64,0.00011918,2]
[350567951,1737965484439,-520.64,0.00011918,2]
[350567952,1737965484448,-520.8,0.00011918,2]
[350567953,1737965484458,-575.84,0.00011918,2]
[350567954,1737965484468,-575.84,0.00011918,2]
[350567955,1737965484478,-575.84,0.00011918,2]
[350567956,1737965484487,-575.84,0.00011918,2]
[350567957,1737965484497,-575.84,0.00011918,2]
[350567958,1737965484507,-575.96296725,0.00011918,2]
[350567959,1737965484517,-500.0,0.00011918,2]
[350567960,1737965484526,-500.0,0.00011918,2]
[350567961,1737965484536,-329.34836362,0.00011918,2]
[350567962,1737965484546,-617.29,0.00011918,2]
[350567963,1737965484555,-617.29,0.00011918,2]
[350567964,1737965484565,-617.29,0.00011918,2]
[350567965,1737965484575,-617.29,0.00011918,2]
[350567966,1737965484589,-617.29,0.00011918,2]
[350567967,1737965484599,-617.48462911,0.00011918,2]
[350567968,1737965484608,-1981.70364458,0.00011918,2]
[350567969,1737965484618,-275174.38325367,0.00011919,2]
[350567970,1737965484635,-1995.73092798,0.00011919,2]
[350567971,1737965484674,-724.7,0.00011876,2]
[350567972,1737965484684,-99918.64271182,0.00011919,2]
[350567973,1737965484696,-1020.20226097,0.00011919,2]
[350567974,1737965484707,-27286.53416223,0.00011919,2]
[350567975,1737965484719,-383.06269992,0.00011919,2]
[350567976,1737965484732,-346.8257925,0.00011919,2]
[350567977,1737965484741,-938.52114795,0.00011919,2]
[350567978,1737965484751,-229.06965465,0.0001192,2]
[350567979,1737965484761,-1951.0,0.0001194,2]
[350567980,1737965484771,-500.0,0.00011973,2]
[350567981,1737965484780,-500.0,0.00011993,2]
[350567982,1737965484790,-1278.17,0.00011993,2]
[350567983,1737965484800,-500.0,0.00011993,2]
[350567984,1737965484810,-537.9,0.00011993,2]
[350567985,1737965484819,-533.28,0.00011993,2]
[350567986,1737965484831,-1051.37,0.00011993,2]
[350567987,1737965484841,-1193.97,0.00011993,2]
[350567988,1737965484850,-841.29,0.00011993,2]
[350567989,1737965484860,-623.54,0.00011993,2]
[350567990,1737965484870,-851.8,0.00011993,2]
[350567991,1737965484879,-500.0,0.00011993,2]
[350567992,1737965484888,-633.47,0.00011993,2]
[350567993,1737965484898,-500.0,0.00011993,2]
[350567994,1737965484907,-1019.32,0.00011993,2]
[350567995,1737965484917,-500.0,0.00011993,2]
[350567996,1737965484926,-550.36,0.00011993,2]
[350567997,1737965484935,-564.37,0.00011993,2]
[350567998,1737965484944,-770.46,0.00011993,2]
[350567999,1737965484954,-500.0,0.00011993,2]
[350568000,1737965484962,-536.42,0.00011993,2]
[350568001,1737965484972,-500.0,0.00011993,2]
[350568002,1737965484982,-730.65,0.00011993,2]
[350568003,1737965484991,-942.7,0.00011993,2]
[350568004,1737965485002,-559.7,0.00011994,2]
[350568005,1737965485011,-500.0,0.00011994,2]
[350568006,1737965485021,-500.0,0.00011994,2]
[350568007,1737965485030,-500.0,0.00011994,2]
[350568008,1737965485038,-500.0,0.00011994,2]
[350568009,1737965485048,-833.0,0.00011994,2]
[350568010,1737965485057,-827.97,0.00011994,2]
[350568011,1737965485066,-1330.82,0.00011994,2]
[350568012,1737965485075,-283.71003488,0.00011995,2]
[350568013,1737965485086,-559.7,0.00011995,2]
[350568014,1737965485095,-559.7,0.00011995,2]
[350568015,1737965485105,-559.7,0.00011995,2]
[350568016,1737965485114,-559.7,0.00011995,2]
[350568017,1737965485123,-559.7,0.00011995,2]
[350568018,1737965485132,-559.88585331,0.00011995,2]
[350568019,1737965485141,-500.0,0.00011995,2]
[350568020,1737965485151,-500.0,0.00011995,2]
[350568021,1737965485160,-500.0,0.00011995,2]
[350568022,1737965485170,-397.12670842,0.00011995,2]
[350568023,1737965485179,-500.0,0.00011995,2]
[350568024,1737965485188,-500.0,0.00011995,2]
[350568025,1737965485198,-441.73015999,0.00011995,2]
[350568026,1737965485207,-500.0,0.00011995,2]
[350568027,1737965485216,-396.29214623,0.00011995,2]
[350568028,1737965485225,-500.0,0.00011995,2]
[350568029,1737965485235,-500.0,0.00011995,2]
[350568030,1737965485244,-500.0,0.00011995,2]
[350568031,1737965485254,-500.0,0.00011995,2]
[350568032,1737965485264,-500.0,0.00011995,2]
[350568033,1737965485274,-500.0,0.00011995,2]
[350568034,1737965485284,-335.6756143,0.00011995,2]
[350568035,1737965485295,-500.0,0.00011995,2]
[350568036,1737965485304,-500.0,0.00011995,2]
[350568037,1737965485314,-500.0,0.00011995,2]
[350568038,1737965485324,-191.44512578,0.00011995,2]
[350568039,1737965485342,-1278.17,0.00011995,2]
[350568040,1737965485352,-1278.17,0.00011995,2]
[350568041,1737965485362,-1278.17,0.00011995,2]
[350568042,1737965485372,-1278.17,0.00011995,2]
[350568043,1737965485383,-1278.29203451,0.00011995,2]
[350568044,1737965485392,-500.0,0.00011995,2]
[350568045,1737965485401,-558.05,0.00011995,2]
[350568046,1737965485411,-244.47806768,0.00011995,2]
[350568047,1737965485420,-833.0,0.00011995,2]
[350568048,1737965485430,-833.0,0.00011995,2]
[350568049,1737965485439,-833.0,0.00011995,2]
[350568050,1737965485449,-833.0,0.00011995,2]
[350568051,1737965485458,-833.0,0.00011995,2]
[350568052,1737965485467,-833.12589989,0.00011995,2]
[350568053,1737965485477,-537.9,0.00011995,2]
[350568054,1737965485486,-537.9,0.00011995,2]
[350568055,1737965485496,-533.28,0.00011995,2]
[350568056,1737965485506,-533.28,0.00011995,2]
[350568057,1737965485515,-533.28,0.00011995,2]
[350568058,1737965485525,-533.28,0.00011995,2]
[350568059,1737965485535,-533.36409835,0.00011995,2]
[350568060,1737965485544,-1051.37,0.00011995,2]
[350568061,1737965485554,-1051.37,0.00011995,2]
[350568062,1737965485563,-1051.37,0.00011995,2]
[350568063,1737965485572,-1051.37,0.00011995,2]
[350568064,1737965485582,-1051.37,0.00011995,2]
[350568065,1737965485591,-827.97,0.00011995,2]
[350568066,1737965485600,-214.6129994,0.00011995,2]
[350568067,1737965485802,-613.3570006,0.00011995,2]
[350568068,1737965485812,-827.97,0.00011995,2]